[Event "Titled Tuesday Blitz August 16 Early 2022"]
[White "Ianov, Viktor"]
[Black "Pourkashiyan, Atousa"]
[WhiteFideId "14102730"]
[BlackFideId "12502014"]
[WhiteElo "2152"]
[BlackElo "2247"]
[Result "1/2-1/2"]
[Round "07"]
[TimeControl "180+2"]
[Date "2022.08.18"]
[WhiteClock "0:00:00"]
[BlackClock "0:00:00"]

1. Nf3 {[%clk 0:00:00]}  d5 {[%clk 0:00:00]} 2. g3 {[%clk 0:00:00]}  c6 {[%clk 0:00:00]} 3. Bg2 {[%clk 0:00:00]}  Nf6 {[%clk 0:00:00]} 4. O-O {[%clk 0:00:00]}  Bg4 {[%clk 0:00:00]} 5. d3 {[%clk 0:00:00]}  e6 {[%clk 0:00:00]} 6. Nbd2 {[%clk 0:00:00]}  Nbd7 {[%clk 0:00:00]} 7. b3 {[%clk 0:00:00]}  Be7 {[%clk 0:00:00]} 8. Bb2 {[%clk 0:00:00]}  O-O {[%clk 0:00:00]} 9. a3 {[%clk 0:00:00]}  a5 {[%clk 0:00:00]} 10. c4 {[%clk 0:00:00]}  h6 {[%clk 0:00:00]} 11. Qc2 {[%clk 0:00:00]}  Rc8 {[%clk 0:00:00]} 12. Rfd1 {[%clk 0:00:00]}  b5 {[%clk 0:00:00]} 13. Rac1 {[%clk 0:00:00]}  bxc4 {[%clk 0:00:00]} 14. bxc4 {[%clk 0:00:00]}  Rb8 {[%clk 0:00:00]} 15. e4 {[%clk 0:00:00]}  Bxf3 {[%clk 0:00:00]} 16. Nxf3 {[%clk 0:00:00]}  Qb6 {[%clk 0:00:00]} 17. Bd4 {[%clk 0:00:00]}  Qb3 {[%clk 0:00:00]} 18. cxd5 {[%clk 0:00:00]}  cxd5 {[%clk 0:00:00]} 19. e5 {[%clk 0:00:00]}  Nh7 {[%clk 0:00:00]} 20. Qc7 {[%clk 0:00:00]}  Rfd8 {[%clk 0:00:00]} 21. Qxa5 {[%clk 0:00:00]}  Qxa3 {[%clk 0:00:00]} 22. Qxa3 {[%clk 0:00:00]}  Bxa3 {[%clk 0:00:00]} 23. Rc7 {[%clk 0:00:00]}  Rbc8 {[%clk 0:00:00]} 24. Ra7 {[%clk 0:00:00]}  Ra8 {[%clk 0:00:00]} 25. Rxa8 {[%clk 0:00:00]}  Rxa8 {[%clk 0:00:00]} 26. Ra1 {[%clk 0:00:00]}  Ra5 {[%clk 0:00:00]} 27. Bc3 {[%clk 0:00:00]}  Ra7 {[%clk 0:00:00]} 28. d4 {[%clk 0:00:00]}  Nb6 {[%clk 0:00:00]} 29. Bf1 {[%clk 0:00:00]}  Ra8 {[%clk 0:00:00]} 30. Nd2 {[%clk 0:00:00]}  Be7 {[%clk 0:00:00]} 31. Rxa8+ {[%clk 0:00:00]}  Nxa8 {[%clk 0:00:00]} 32. h4 {[%clk 0:00:00]}  Nb6 {[%clk 0:00:00]} 33. Bd3 {[%clk 0:00:00]}  Nf8 {[%clk 0:00:00]} 34. f4 {[%clk 0:00:00]}  Nfd7 {[%clk 0:00:00]} 35. Kf2 {[%clk 0:00:00]}  Na4 {[%clk 0:00:00]} 36. Ba1 {[%clk 0:00:00]}  Bb4 {[%clk 0:00:00]} 37. Nf3 {[%clk 0:00:00]}  Bc3 {[%clk 0:00:00]} 38. Bxc3 {[%clk 0:00:00]}  Nxc3 {[%clk 0:00:00]} 39. f5 {[%clk 0:00:00]}  Nb6 {[%clk 0:00:00]} 40. g4 {[%clk 0:00:00]}  Nd1+ {[%clk 0:00:00]} 41. Ke2 {[%clk 0:00:00]}  Nb2 {[%clk 0:00:00]} 42. f6 {[%clk 0:00:00]}  Nxd3 {[%clk 0:00:00]} 43. Kxd3 {[%clk 0:00:00]}  gxf6 {[%clk 0:00:00]} 44. exf6 {[%clk 0:00:00]}  Nd7 {[%clk 0:00:00]} 45. g5 {[%clk 0:00:00]}  hxg5 {[%clk 0:00:00]} 46. hxg5 {[%clk 0:00:00]}  Kh7 {[%clk 0:00:00]} 47. Nh4 {[%clk 0:00:00]}  Nb6 {[%clk 0:00:00]} 48. Ke3 {[%clk 0:00:00]}  Nc4+ {[%clk 0:00:00]} 49. Kf4 {[%clk 0:00:00]}  Nd6 {[%clk 0:00:00]} 50. Nf3 {[%clk 0:00:00]}  Nf5 {[%clk 0:00:00]} 51. Ne5 {[%clk 0:00:00]}  Nd6 {[%clk 0:00:00]} 52. Kg4 {[%clk 0:00:00]}  Kg8 {[%clk 0:00:00]} 53. Kh5 {[%clk 0:00:00]}  Nf5 {[%clk 0:00:00]} 54. Nf3 {[%clk 0:00:00]}  Ng3+ {[%clk 0:00:00]} 55. Kh6 {[%clk 0:00:00]}  Ne4 {[%clk 0:00:00]} 56. Ne5 {[%clk 0:00:00]}  Kf8 {[%clk 0:00:00]} 57. Nd7+ {[%clk 0:00:00]}  Kg8 {[%clk 0:00:00]} 58. Ne5 {[%clk 0:00:00]}  Kf8 {[%clk 0:00:00]} 59. Nd7+ {[%clk 0:00:00]}  Kg8 {[%clk 0:00:00]} 60. Ne5 {[%clk 0:00:00]} 1/2-1/2


[Site "https://www.chess.com"]

[Event "Titled Tuesday Blitz August 16 Early 2022"]
[White "Jaferian, Koosha"]
[Black "Martic, Ivan"]
[WhiteFideId "12507440"]
[BlackFideId "929301"]
[WhiteElo "2030"]
[BlackElo "2355"]
[Result "1-0"]
[Round "07"]
[TimeControl "180+2"]
[Date "2022.08.18"]
[WhiteClock "0:00:00"]
[BlackClock "0:00:00"]

1. Nf3 {[%clk 0:00:00]}  Nf6 {[%clk 0:00:00]} 2. b3 {[%clk 0:00:00]}  d5 {[%clk 0:00:00]} 3. Bb2 {[%clk 0:00:00]}  c6 {[%clk 0:00:00]} 4. g3 {[%clk 0:00:00]}  Bf5 {[%clk 0:00:00]} 5. Bg2 {[%clk 0:00:00]}  e6 {[%clk 0:00:00]} 6. O-O {[%clk 0:00:00]}  Nbd7 {[%clk 0:00:00]} 7. d3 {[%clk 0:00:00]}  h6 {[%clk 0:00:00]} 8. Nbd2 {[%clk 0:00:00]}  Bh7 {[%clk 0:00:00]} 9. e3 {[%clk 0:00:00]}  Bd6 {[%clk 0:00:00]} 10. Qe2 {[%clk 0:00:00]}  O-O {[%clk 0:00:00]} 11. Ne1 {[%clk 0:00:00]}  a5 {[%clk 0:00:00]} 12. a4 {[%clk 0:00:00]}  e5 {[%clk 0:00:00]} 13. e4 {[%clk 0:00:00]}  dxe4 {[%clk 0:00:00]} 14. dxe4 {[%clk 0:00:00]}  Re8 {[%clk 0:00:00]} 15. Nd3 {[%clk 0:00:00]}  Nc5 {[%clk 0:00:00]} 16. Nxc5 {[%clk 0:00:00]}  Bxc5 {[%clk 0:00:00]} 17. Nc4 {[%clk 0:00:00]}  Qc7 {[%clk 0:00:00]} 18. Rad1 {[%clk 0:00:00]}  Bg6 {[%clk 0:00:00]} 19. Ba3 {[%clk 0:00:00]}  Bxa3 {[%clk 0:00:00]} 20. Nxa3 {[%clk 0:00:00]}  Bh5 {[%clk 0:00:00]} 21. f3 {[%clk 0:00:00]}  Nd7 {[%clk 0:00:00]} 22. Nc4 {[%clk 0:00:00]}  Nc5 {[%clk 0:00:00]} 23. Qe3 {[%clk 0:00:00]}  b6 {[%clk 0:00:00]} 24. Nd6 {[%clk 0:00:00]}  Red8 {[%clk 0:00:00]} 25. Nf5 {[%clk 0:00:00]}  Bg6 {[%clk 0:00:00]} 26. Bh3 {[%clk 0:00:00]}  Bxf5 {[%clk 0:00:00]} 27. Bxf5 {[%clk 0:00:00]}  Rxd1 {[%clk 0:00:00]} 28. Rxd1 {[%clk 0:00:00]}  Rd8 {[%clk 0:00:00]} 29. Rd2 {[%clk 0:00:00]}  Rd6 {[%clk 0:00:00]} 30. Kf2 {[%clk 0:00:00]}  Qd8 {[%clk 0:00:00]} 31. Ke2 {[%clk 0:00:00]}  g6 {[%clk 0:00:00]} 32. Bh3 {[%clk 0:00:00]}  Kg7 {[%clk 0:00:00]} 33. Rxd6 {[%clk 0:00:00]}  Qxd6 {[%clk 0:00:00]} 34. Qd2 {[%clk 0:00:00]}  Qe7 {[%clk 0:00:00]} 35. Qc3 {[%clk 0:00:00]}  h5 {[%clk 0:00:00]} 36. Kf2 {[%clk 0:00:00]}  h4 {[%clk 0:00:00]} 37. Bf1 {[%clk 0:00:00]}  hxg3+ {[%clk 0:00:00]} 38. hxg3 {[%clk 0:00:00]}  Qd6 {[%clk 0:00:00]} 39. Bc4 {[%clk 0:00:00]}  Qf6 {[%clk 0:00:00]} 40. Qe3 {[%clk 0:00:00]}  Qd6 {[%clk 0:00:00]} 41. Ke2 {[%clk 0:00:00]}  Nd7 {[%clk 0:00:00]} 42. f4 {[%clk 0:00:00]}  Nc5 {[%clk 0:00:00]} 43. f5 {[%clk 0:00:00]}  Qf6 {[%clk 0:00:00]} 44. g4 {[%clk 0:00:00]}  Qh4 {[%clk 0:00:00]} 45. Qf3 {[%clk 0:00:00]}  Qh2+ {[%clk 0:00:00]} 46. Kd1 {[%clk 0:00:00]}  Qg1+ {[%clk 0:00:00]} 47. Ke2 {[%clk 0:00:00]}  f6 {[%clk 0:00:00]} 48. fxg6 {[%clk 0:00:00]}  Qh2+ {[%clk 0:00:00]} 49. Kf1 {[%clk 0:00:00]}  Qh6 {[%clk 0:00:00]} 50. Bf7 {[%clk 0:00:00]}  Qc1+ {[%clk 0:00:00]} 51. Kg2 {[%clk 0:00:00]}  Qxc2+ {[%clk 0:00:00]} 52. Kh3 {[%clk 0:00:00]}  Nxe4 {[%clk 0:00:00]} 53. Qf5 {[%clk 0:00:00]}  Ng5+ {[%clk 0:00:00]} 54. Kg3 {[%clk 0:00:00]}  Qc3+ {[%clk 0:00:00]} 55. Kf2 {[%clk 0:00:00]}  Qd2+ {[%clk 0:00:00]} 56. Kf1 {[%clk 0:00:00]}  Qd1+ {[%clk 0:00:00]} 57. Kf2 {[%clk 0:00:00]}  Nh3+ {[%clk 0:00:00]} 58. Kg3 {[%clk 0:00:00]} 1-0


[Site "https://www.chess.com"]

[Event "Titled Tuesday Blitz August 16 Early 2022"]
[White "Janaszak, Dawid"]
[Black "Leschinsky, Gary"]
[WhiteFideId "1119206"]
[BlackFideId "30951321"]
[WhiteElo "2165"]
[BlackElo "1809"]
[Result "0-1"]
[Round "07"]
[TimeControl "180+2"]
[Date "2022.08.18"]
[WhiteClock "0:00:00"]
[BlackClock "0:00:00"]

1. e4 {[%clk 0:00:00]}  c5 {[%clk 0:00:00]} 2. Nc3 {[%clk 0:00:00]}  e6 {[%clk 0:00:00]} 3. g3 {[%clk 0:00:00]}  d5 {[%clk 0:00:00]} 4. Bg2 {[%clk 0:00:00]}  Nf6 {[%clk 0:00:00]} 5. e5 {[%clk 0:00:00]}  Nfd7 {[%clk 0:00:00]} 6. f4 {[%clk 0:00:00]}  Nc6 {[%clk 0:00:00]} 7. Nf3 {[%clk 0:00:00]}  Be7 {[%clk 0:00:00]} 8. O-O {[%clk 0:00:00]}  Rb8 {[%clk 0:00:00]} 9. Ne2 {[%clk 0:00:00]}  b5 {[%clk 0:00:00]} 10. c3 {[%clk 0:00:00]}  a5 {[%clk 0:00:00]} 11. d4 {[%clk 0:00:00]}  b4 {[%clk 0:00:00]} 12. f5 {[%clk 0:00:00]}  exf5 {[%clk 0:00:00]} 13. Nf4 {[%clk 0:00:00]}  Nb6 {[%clk 0:00:00]} 14. Kh1 {[%clk 0:00:00]}  O-O {[%clk 0:00:00]} 15. Qe2 {[%clk 0:00:00]}  bxc3 {[%clk 0:00:00]} 16. bxc3 {[%clk 0:00:00]}  cxd4 {[%clk 0:00:00]} 17. Nxd4 {[%clk 0:00:00]}  Nxd4 {[%clk 0:00:00]} 18. cxd4 {[%clk 0:00:00]}  Re8 {[%clk 0:00:00]} 19. Rb1 {[%clk 0:00:00]}  Be6 {[%clk 0:00:00]} 20. Qa6 {[%clk 0:00:00]}  Bb4 {[%clk 0:00:00]} 21. a3 {[%clk 0:00:00]}  Bc3 {[%clk 0:00:00]} 22. Qd3 {[%clk 0:00:00]}  Na4 {[%clk 0:00:00]} 23. Be3 {[%clk 0:00:00]}  Qd7 {[%clk 0:00:00]} 24. Rbc1 {[%clk 0:00:00]}  Rb3 {[%clk 0:00:00]} 25. Qd1 {[%clk 0:00:00]}  Rxa3 {[%clk 0:00:00]} 26. Rb1 {[%clk 0:00:00]}  Bb4 {[%clk 0:00:00]} 27. Bc1 {[%clk 0:00:00]}  Nc3 {[%clk 0:00:00]} 28. Qc2 {[%clk 0:00:00]}  Nxb1 {[%clk 0:00:00]} 29. Qxb1 {[%clk 0:00:00]}  Rc3 {[%clk 0:00:00]} 30. Bd2 {[%clk 0:00:00]}  Rc4 {[%clk 0:00:00]} 31. Be3 {[%clk 0:00:00]}  h6 {[%clk 0:00:00]} 32. Rd1 {[%clk 0:00:00]}  Rec8 {[%clk 0:00:00]} 33. h4 {[%clk 0:00:00]}  Qb5 {[%clk 0:00:00]} 34. Bf1 {[%clk 0:00:00]}  a4 {[%clk 0:00:00]} 35. Nd3 {[%clk 0:00:00]}  Qa5 {[%clk 0:00:00]} 36. Nc5 {[%clk 0:00:00]}  Bxc5 {[%clk 0:00:00]} 37. Bxc4 {[%clk 0:00:00]}  dxc4 {[%clk 0:00:00]} 38. dxc5 {[%clk 0:00:00]}  Qa8+ {[%clk 0:00:00]} 39. Kh2 {[%clk 0:00:00]}  Qf3 {[%clk 0:00:00]} 40. Bf4 {[%clk 0:00:00]}  c3 {[%clk 0:00:00]} 41. Qc2 {[%clk 0:00:00]}  Bb3 {[%clk 0:00:00]} 42. Qd3 {[%clk 0:00:00]}  Qxd1 {[%clk 0:00:00]} 43. Qxf5 {[%clk 0:00:00]}  Qc2+ {[%clk 0:00:00]} 0-1


[Site "https://www.chess.com"]

[Event "Titled Tuesday Blitz August 16 Early 2022"]
[White "Kambrath, Yannick"]
[Black "Hess, Robert"]
[WhiteFideId "20632525"]
[BlackFideId "2022036"]
[WhiteElo "2236"]
[BlackElo "2557"]
[Result "0-1"]
[Round "07"]
[TimeControl "180+1"]
[Date "2022.08.16"]
[WhiteClock "0:00:06"]
[BlackClock "0:00:49"]

1. e4 {[%clk 0:02:45]}  g6 {[%clk 0:03:00]} 2. d4 {[%clk 0:02:42]}  Bg7 {[%clk 0:02:59]} 3. f4 {[%clk 0:02:39]}  e6 {[%clk 0:02:57]} 4. Nf3 {[%clk 0:02:36]}  d5 {[%clk 0:02:57]} 5. e5 {[%clk 0:02:08]}  h5 {[%clk 0:02:57]} 6. c4 {[%clk 0:02:06]}  dxc4 {[%clk 0:02:53]} 7. Nc3 {[%clk 0:02:03]}  Nd7 {[%clk 0:02:46]} 8. d5 {[%clk 0:01:44]}  Nb6 {[%clk 0:02:46]} 9. Bxc4 {[%clk 0:01:24]}  c6 {[%clk 0:01:42]} 10. Bb3 {[%clk 0:01:07]}  exd5 {[%clk 0:01:36]} 11. Bc2 {[%clk 0:00:58]}  Nh6 {[%clk 0:01:35]} 12. a4 {[%clk 0:00:54]}  O-O {[%clk 0:01:32]} 13. a5 {[%clk 0:00:54]}  Nc4 {[%clk 0:01:29]} 14. b3 {[%clk 0:00:41]}  Nxa5 {[%clk 0:01:29]} 15. Ba3 {[%clk 0:00:42]}  Re8 {[%clk 0:01:25]} 16. Bb4 {[%clk 0:00:42]}  b6 {[%clk 0:01:25]} 17. Bxa5 {[%clk 0:00:42]}  bxa5 {[%clk 0:01:26]} 18. O-O {[%clk 0:00:42]}  Rb8 {[%clk 0:01:15]} 19. Nd4 {[%clk 0:00:31]}  Rb4 {[%clk 0:01:15]} 20. Kh1 {[%clk 0:00:29]}  Qb6 {[%clk 0:01:14]} 21. Nde2 {[%clk 0:00:16]}  Ng4 {[%clk 0:01:09]} 22. Na4 {[%clk 0:00:10]}  Nf2+ {[%clk 0:01:02]} 23. Kg1 {[%clk 0:00:08]}  Nxd1+ {[%clk 0:01:02]} 24. Nxb6 {[%clk 0:00:08]}  axb6 {[%clk 0:00:53]} 25. Rfxd1 {[%clk 0:00:08]}  Bg4 {[%clk 0:00:49]} 26. Kf2 {[%clk 0:00:06]}  f6 {[%clk 0:00:49]} 0-1


[Site "https://www.chess.com"]

[Event "Titled Tuesday Blitz August 16 Early 2022"]
[White "Kamsky, Gata"]
[Black "Belov, Vladimir"]
[WhiteFideId "2000024"]
[BlackFideId "4132394"]
[WhiteElo "2666"]
[BlackElo "2501"]
[Result "1-0"]
[Round "07"]
[TimeControl "180+1"]
[Date "2022.08.16"]
[WhiteClock "0:01:00"]
[BlackClock "0:00:01"]

1. d4 {[%clk 0:03:00]}  Nf6 {[%clk 0:02:59]} 2. Bf4 {[%clk 0:02:57]}  g6 {[%clk 0:02:49]} 3. Nf3 {[%clk 0:02:56]}  Bg7 {[%clk 0:02:50]} 4. c3 {[%clk 0:02:56]}  d6 {[%clk 0:02:50]} 5. h3 {[%clk 0:02:54]}  O-O {[%clk 0:02:49]} 6. Nbd2 {[%clk 0:02:55]}  c5 {[%clk 0:02:50]} 7. dxc5 {[%clk 0:02:54]}  dxc5 {[%clk 0:02:50]} 8. e4 {[%clk 0:02:55]}  Nc6 {[%clk 0:02:48]} 9. Be2 {[%clk 0:02:54]}  b6 {[%clk 0:02:23]} 10. O-O {[%clk 0:02:53]}  Bb7 {[%clk 0:02:24]} 11. Bh2 {[%clk 0:02:53]}  Na5 {[%clk 0:02:19]} 12. Qc2 {[%clk 0:02:36]}  Qc8 {[%clk 0:02:17]} 13. Rfe1 {[%clk 0:02:34]}  Rd8 {[%clk 0:02:07]} 14. Bf1 {[%clk 0:02:26]}  Ba6 {[%clk 0:01:54]} 15. Bxa6 {[%clk 0:02:11]}  Qxa6 {[%clk 0:01:53]} 16. e5 {[%clk 0:02:11]}  Nd5 {[%clk 0:01:50]} 17. e6 {[%clk 0:02:11]}  f5 {[%clk 0:01:47]} 18. Ng5 {[%clk 0:02:08]}  Nf6 {[%clk 0:01:38]} 19. Nf7 {[%clk 0:01:27]}  Qd3 {[%clk 0:01:36]} 20. Qxd3 {[%clk 0:01:26]}  Rxd3 {[%clk 0:01:36]} 21. Re2 {[%clk 0:01:23]}  Nc6 {[%clk 0:01:18]} 22. a4 {[%clk 0:01:15]}  Nd5 {[%clk 0:01:05]} 23. Nc4 {[%clk 0:01:10]}  Bf6 {[%clk 0:00:52]} 24. Ree1 {[%clk 0:01:05]}  Rc8 {[%clk 0:00:35]} 25. Rad1 {[%clk 0:01:04]}  Rxd1 {[%clk 0:00:34]} 26. Rxd1 {[%clk 0:01:04]}  Nc7 {[%clk 0:00:28]} 27. Bxc7 {[%clk 0:01:04]}  Rxc7 {[%clk 0:00:28]} 28. f4 {[%clk 0:01:04]}  Kg7 {[%clk 0:00:24]} 29. g4 {[%clk 0:01:03]}  fxg4 {[%clk 0:00:09]} 30. hxg4 {[%clk 0:01:03]}  Bh4 {[%clk 0:00:10]} 31. g5 {[%clk 0:01:00]}  Bg3 {[%clk 0:00:04]} 32. Rf1 {[%clk 0:01:00]}  Rb7 {[%clk 0:00:02]} 33. Kg2 {[%clk 0:01:00]}  Bh4 {[%clk 0:00:01]} 34. Kh3 {[%clk 0:01:00]} 1-0


[Site "https://www.chess.com"]

[Event "Titled Tuesday Blitz August 16 Early 2022"]
[White "Khabinets, Ivan"]
[Black "Sargissyan, Sargis"]
[WhiteFideId "14115980"]
[BlackFideId "13303210"]
[WhiteElo "2114"]
[BlackElo "2102"]
[Result "1-0"]
[Round "07"]
[TimeControl "180+2"]
[Date "2022.08.18"]
[WhiteClock "0:00:00"]
[BlackClock "0:00:00"]

1. e4 {[%clk 0:00:00]}  c5 {[%clk 0:00:00]} 2. Nf3 {[%clk 0:00:00]}  d6 {[%clk 0:00:00]} 3. Bb5+ {[%clk 0:00:00]}  Nc6 {[%clk 0:00:00]} 4. O-O {[%clk 0:00:00]}  Bd7 {[%clk 0:00:00]} 5. Re1 {[%clk 0:00:00]}  a6 {[%clk 0:00:00]} 6. Bf1 {[%clk 0:00:00]}  e5 {[%clk 0:00:00]} 7. c3 {[%clk 0:00:00]}  g5 {[%clk 0:00:00]} 8. d4 {[%clk 0:00:00]}  g4 {[%clk 0:00:00]} 9. d5 {[%clk 0:00:00]}  gxf3 {[%clk 0:00:00]} 10. dxc6 {[%clk 0:00:00]}  bxc6 {[%clk 0:00:00]} 11. Qxf3 {[%clk 0:00:00]}  Qf6 {[%clk 0:00:00]} 12. Qg3 {[%clk 0:00:00]}  Qg6 {[%clk 0:00:00]} 13. Na3 {[%clk 0:00:00]}  Nf6 {[%clk 0:00:00]} 14. Nc4 {[%clk 0:00:00]}  Be6 {[%clk 0:00:00]} 15. Qd3 {[%clk 0:00:00]}  Rd8 {[%clk 0:00:00]} 16. Na5 {[%clk 0:00:00]}  Bd7 {[%clk 0:00:00]} 17. Nb7 {[%clk 0:00:00]}  Nh5 {[%clk 0:00:00]} 18. Nxd8 {[%clk 0:00:00]}  Kxd8 {[%clk 0:00:00]} 19. Qxa6 {[%clk 0:00:00]}  Rg8 {[%clk 0:00:00]} 20. Qd3 {[%clk 0:00:00]}  f5 {[%clk 0:00:00]} 21. Bd2 {[%clk 0:00:00]}  Bh6 {[%clk 0:00:00]} 22. Bxh6 {[%clk 0:00:00]}  Qxh6 {[%clk 0:00:00]} 23. Qh3 {[%clk 0:00:00]}  Qg5 {[%clk 0:00:00]} 24. Rad1 {[%clk 0:00:00]}  Nf4 {[%clk 0:00:00]} 25. Qg3 {[%clk 0:00:00]}  Kc7 {[%clk 0:00:00]} 26. Qxg5 {[%clk 0:00:00]}  Rxg5 {[%clk 0:00:00]} 27. g3 {[%clk 0:00:00]}  fxe4 {[%clk 0:00:00]} 28. Rxe4 {[%clk 0:00:00]}  Bg4 {[%clk 0:00:00]} 29. Rd2 {[%clk 0:00:00]}  Bf3 {[%clk 0:00:00]} 30. Re3 {[%clk 0:00:00]}  e4 {[%clk 0:00:00]} 31. h4 {[%clk 0:00:00]}  Rg6 {[%clk 0:00:00]} 32. Kh2 {[%clk 0:00:00]}  Ne6 {[%clk 0:00:00]} 33. Bh3 {[%clk 0:00:00]}  d5 {[%clk 0:00:00]} 34. Bf5 {[%clk 0:00:00]}  Rf6 {[%clk 0:00:00]} 35. g4 {[%clk 0:00:00]}  c4 {[%clk 0:00:00]} 36. Kg3 {[%clk 0:00:00]}  Nc5 {[%clk 0:00:00]} 37. Rxf3 {[%clk 0:00:00]}  exf3 {[%clk 0:00:00]} 38. Kxf3 {[%clk 0:00:00]}  Ne4 {[%clk 0:00:00]} 39. Re2 {[%clk 0:00:00]}  h5 {[%clk 0:00:00]} 40. Kf4 {[%clk 0:00:00]}  hxg4 {[%clk 0:00:00]} 41. Kxg4 {[%clk 0:00:00]}  Nd6 {[%clk 0:00:00]} 42. Bc2 {[%clk 0:00:00]}  c5 {[%clk 0:00:00]} 43. h5 {[%clk 0:00:00]}  d4 {[%clk 0:00:00]} 44. Re5 {[%clk 0:00:00]}  d3 {[%clk 0:00:00]} 45. Bd1 {[%clk 0:00:00]}  Kc6 {[%clk 0:00:00]} 46. f4 {[%clk 0:00:00]}  d2 {[%clk 0:00:00]} 47. Re2 {[%clk 0:00:00]}  Nf5 {[%clk 0:00:00]} 48. Rxd2 {[%clk 0:00:00]}  Ne3+ {[%clk 0:00:00]} 49. Kg5 {[%clk 0:00:00]}  Rf5+ {[%clk 0:00:00]} 50. Kg6 {[%clk 0:00:00]}  Rxf4 {[%clk 0:00:00]} 51. h6 {[%clk 0:00:00]}  Nxd1 {[%clk 0:00:00]} 52. Rxd1 {[%clk 0:00:00]}  Rg4+ {[%clk 0:00:00]} 53. Kf5 {[%clk 0:00:00]}  Rh4 {[%clk 0:00:00]} 54. Kg5 {[%clk 0:00:00]}  Rh2 {[%clk 0:00:00]} 55. Rg1 {[%clk 0:00:00]}  Rxb2 {[%clk 0:00:00]} 56. Rh1 {[%clk 0:00:00]}  Rb8 {[%clk 0:00:00]} 57. h7 {[%clk 0:00:00]} 1-0


[Site "https://www.chess.com"]

[Event "Titled Tuesday Blitz August 16 Early 2022"]
[White "Kohler, Aran"]
[Black "Balabayeva, Xeniya"]
[WhiteFideId "1002856"]
[BlackFideId "13719688"]
[WhiteElo "2060"]
[BlackElo "1895"]
[Result "1-0"]
[Round "07"]
[TimeControl "180+2"]
[Date "2022.08.18"]
[WhiteClock "0:00:00"]
[BlackClock "0:00:00"]

1. Nf3 {[%clk 0:00:00]}  d5 {[%clk 0:00:00]} 2. d4 {[%clk 0:00:00]}  e6 {[%clk 0:00:00]} 3. Bf4 {[%clk 0:00:00]}  Nf6 {[%clk 0:00:00]} 4. e3 {[%clk 0:00:00]}  c5 {[%clk 0:00:00]} 5. c3 {[%clk 0:00:00]}  Nc6 {[%clk 0:00:00]} 6. Nbd2 {[%clk 0:00:00]}  Nh5 {[%clk 0:00:00]} 7. Bg3 {[%clk 0:00:00]}  Nxg3 {[%clk 0:00:00]} 8. hxg3 {[%clk 0:00:00]}  Qb6 {[%clk 0:00:00]} 9. Rb1 {[%clk 0:00:00]}  Bd7 {[%clk 0:00:00]} 10. Bd3 {[%clk 0:00:00]}  h6 {[%clk 0:00:00]} 11. dxc5 {[%clk 0:00:00]}  Bxc5 {[%clk 0:00:00]} 12. b4 {[%clk 0:00:00]}  Be7 {[%clk 0:00:00]} 13. b5 {[%clk 0:00:00]}  Na5 {[%clk 0:00:00]} 14. c4 {[%clk 0:00:00]}  dxc4 {[%clk 0:00:00]} 15. Nxc4 {[%clk 0:00:00]}  Nxc4 {[%clk 0:00:00]} 16. Bxc4 {[%clk 0:00:00]}  Rc8 {[%clk 0:00:00]} 17. Bd3 {[%clk 0:00:00]}  Qa5+ {[%clk 0:00:00]} 18. Qd2 {[%clk 0:00:00]}  Qxd2+ {[%clk 0:00:00]} 19. Kxd2 {[%clk 0:00:00]}  Bc5 {[%clk 0:00:00]} 20. Ne5 {[%clk 0:00:00]}  Ke7 {[%clk 0:00:00]} 21. Nxd7 {[%clk 0:00:00]}  Kxd7 {[%clk 0:00:00]} 22. Rhd1 {[%clk 0:00:00]}  Ke7 {[%clk 0:00:00]} 23. Be4 {[%clk 0:00:00]}  Rc7 {[%clk 0:00:00]} 24. Ke2 {[%clk 0:00:00]}  f5 {[%clk 0:00:00]} 25. Bf3 {[%clk 0:00:00]}  g6 {[%clk 0:00:00]} 26. g4 {[%clk 0:00:00]}  Kf6 {[%clk 0:00:00]} 27. gxf5 {[%clk 0:00:00]}  exf5 {[%clk 0:00:00]} 28. g3 {[%clk 0:00:00]}  Rhc8 {[%clk 0:00:00]} 29. Rd5 {[%clk 0:00:00]}  Ba3 {[%clk 0:00:00]} 30. Rbd1 {[%clk 0:00:00]}  Rc2+ {[%clk 0:00:00]} 31. R1d2 {[%clk 0:00:00]}  Bb4 {[%clk 0:00:00]} 32. Rxc2 {[%clk 0:00:00]}  Rxc2+ {[%clk 0:00:00]} 33. Kf1 {[%clk 0:00:00]}  Rxa2 {[%clk 0:00:00]} 34. Rd7 {[%clk 0:00:00]}  b6 {[%clk 0:00:00]} 35. Bc6 {[%clk 0:00:00]}  Bc5 {[%clk 0:00:00]} 36. f4 {[%clk 0:00:00]}  a5 {[%clk 0:00:00]} 37. Bd5 {[%clk 0:00:00]}  Ra1+ {[%clk 0:00:00]} 38. Ke2 {[%clk 0:00:00]}  g5 {[%clk 0:00:00]} 39. Rf7+ {[%clk 0:00:00]}  Kg6 {[%clk 0:00:00]} 40. Rc7 {[%clk 0:00:00]}  Ra3 {[%clk 0:00:00]} 41. Rc6+ {[%clk 0:00:00]}  Kg7 {[%clk 0:00:00]} 42. e4 {[%clk 0:00:00]}  fxe4 {[%clk 0:00:00]} 43. f5 {[%clk 0:00:00]}  Re3+ {[%clk 0:00:00]} 44. Kd2 {[%clk 0:00:00]}  Rd3+ {[%clk 0:00:00]} 45. Ke2 {[%clk 0:00:00]}  Bd4 {[%clk 0:00:00]} 46. Rg6+ {[%clk 0:00:00]}  Kf8 {[%clk 0:00:00]} 47. f6 {[%clk 0:00:00]}  Bb2 {[%clk 0:00:00]} 48. Rg8# {[%clk 0:00:00]} 1-0


[Site "https://www.chess.com"]

[Event "Titled Tuesday Blitz August 16 Early 2022"]
[White "Lakshmi C"]
[Black "Kostiukov, Alexandr"]
[WhiteFideId "25035347"]
[BlackFideId "14108100"]
[WhiteElo "1775"]
[BlackElo "2202"]
[Result "0-1"]
[Round "07"]
[TimeControl "180+2"]
[Date "2022.08.18"]
[WhiteClock "0:00:00"]
[BlackClock "0:00:00"]

1. e4 {[%clk 0:00:00]}  c5 {[%clk 0:00:00]} 2. Nf3 {[%clk 0:00:00]}  g6 {[%clk 0:00:00]} 3. d4 {[%clk 0:00:00]}  cxd4 {[%clk 0:00:00]} 4. Nxd4 {[%clk 0:00:00]}  Bg7 {[%clk 0:00:00]} 5. Be3 {[%clk 0:00:00]}  Nc6 {[%clk 0:00:00]} 6. Nc3 {[%clk 0:00:00]}  Nf6 {[%clk 0:00:00]} 7. Bc4 {[%clk 0:00:00]}  Qa5 {[%clk 0:00:00]} 8. O-O {[%clk 0:00:00]}  O-O {[%clk 0:00:00]} 9. Bb3 {[%clk 0:00:00]}  Ng4 {[%clk 0:00:00]} 10. Qxg4 {[%clk 0:00:00]}  Nxd4 {[%clk 0:00:00]} 11. Nd5 {[%clk 0:00:00]}  Qd8 {[%clk 0:00:00]} 12. Qh4 {[%clk 0:00:00]}  e6 {[%clk 0:00:00]} 13. Qxd8 {[%clk 0:00:00]}  Rxd8 {[%clk 0:00:00]} 14. Bg5 {[%clk 0:00:00]}  Rf8 {[%clk 0:00:00]} 15. Nc7 {[%clk 0:00:00]}  Rb8 {[%clk 0:00:00]} 16. Be7 {[%clk 0:00:00]}  Be5 {[%clk 0:00:00]} 17. Bxf8 {[%clk 0:00:00]}  Kxf8 {[%clk 0:00:00]} 18. Nd5 {[%clk 0:00:00]}  exd5 {[%clk 0:00:00]} 19. Bxd5 {[%clk 0:00:00]}  Nxc2 {[%clk 0:00:00]} 20. Rac1 {[%clk 0:00:00]}  Nd4 {[%clk 0:00:00]} 21. Rfe1 {[%clk 0:00:00]}  Nc6 {[%clk 0:00:00]} 22. g3 {[%clk 0:00:00]}  Bxb2 {[%clk 0:00:00]} 23. Rb1 {[%clk 0:00:00]}  Bd4 {[%clk 0:00:00]} 24. Kg2 {[%clk 0:00:00]}  b6 {[%clk 0:00:00]} 25. f4 {[%clk 0:00:00]}  Bc5 {[%clk 0:00:00]} 26. Rec1 {[%clk 0:00:00]}  Bb7 {[%clk 0:00:00]} 0-1


[Site "https://www.chess.com"]